[Event "Kadrioru MK Open A"]
[Site "Tallinn, Paul Keres Chess House, Estonia"]
[Date "2023.02.12"]
[Round "5.2"]
[White "Jezov, Roman"]
[Black "Neff, Sergei"]
[Result "1-0"]
[TimeControl "90 minutes with 30 second increment from move 1"]
[WhiteTitle "FM"]
[WhiteElo "2262"]
[BlackElo "2159"]

1. e4 {

[%clk 01:30:59]

} {

[%emt 00:47:24]

} e6 {

[%clk 01:29:06]

} {

[%emt 00:01:54]

} 2. b3 {

[%clk 01:31:10]

} {

[%emt 00:00:20]

} b6 {

[%clk 01:29:08]

} {

[%emt 00:00:28]

} 3. Bb2 {

[%clk 01:30:07]

} {

[%emt 00:01:32]

} Bb7 {

[%clk 01:29:33]

} {

[%emt 00:00:05]

} 4. Nc3 {

[%clk 01:30:15]

} {

[%emt 00:00:21]

} Nh6 {

[%clk 01:27:38]

} {

[%emt 00:02:24]

} 5. Nf3 {

[%clk 01:28:34]

} {

[%emt 00:02:12]

} g5 {

[%clk 01:24:26]

} {

[%emt 00:03:42]

} 6. Nd5 {

[%clk 01:24:45]

} {

[%emt 00:04:19]

} exd5 {

[%clk 01:24:45]

} {

[%emt 00:00:12]

} 7. Bxh8 {

[%clk 01:25:13]

} {

[%emt 00:00:03]

} dxe4 {

[%clk 01:25:10]

} {

[%emt 00:00:04]

} 8. Ng1 {

[%clk 01:25:40]

} {

[%emt 00:00:03]

} Qe7 {

[%clk 01:23:07]

} {

[%emt 00:02:34]

} 9. Qh5 {

[%clk 01:23:33]

} {

[%emt 00:02:36]

} Qc5 {

[%clk 01:17:19]

} {

[%emt 00:06:17]

} 10. h4 {

[%clk 01:20:37]

} {

[%emt 00:03:26]

} g4 {

[%clk 01:17:00]

} {

[%emt 00:00:49]

} 11. Qg5 {

[%clk 01:13:22]

} {

[%emt 00:07:45]

} Nc6 {

[%clk 01:13:21]

} {

[%emt 00:04:10]

} 12. c3 {

[%clk 01:12:14]

} {

[%emt 00:01:37]

} Qd6 {

[%clk 01:12:44]

} {

[%emt 00:01:07]

} 13. Bf6 {

[%clk 01:10:36]

} {

[%emt 00:02:09]

} Ne7 {

[%clk 01:09:20]

} {

[%emt 00:03:54]

} 14. Ne2 {

[%clk 01:04:42]

} {

[%emt 00:06:24]

} Neg8 {

[%clk 01:07:11]

} {

[%emt 00:02:38]

} 15. Be5 {

[%clk 01:04:00]

} {

[%emt 00:01:12]

} Qe7 {

[%clk 01:06:32]

} {

[%emt 00:01:09]

} 16. Bxc7 {

[%clk 01:01:28]

} {

[%emt 00:03:03]

} f6 {

[%clk 01:00:36]

} {

[%emt 00:06:26]

} 17. Qh5+ {

[%clk 01:01:23]

} {

[%emt 00:00:35]

} Qf7 {

[%clk 01:00:55]

} {

[%emt 00:00:10]

} 18. Qxf7+ {

[%clk 01:01:20]

} {

[%emt 00:00:32]

} Nxf7 {

[%clk 01:01:23]

} {

[%emt 00:00:02]

} 19. Bf4 {

[%clk 01:01:10]

} {

[%emt 00:00:40]

} Ne7 {

[%clk 00:51:57]

} {

[%emt 00:09:57]

} 20. Nd4 {

[%clk 01:00:25]

} {

[%emt 00:01:15]

} Nd5 {

[%clk 00:51:33]

} {

[%emt 00:00:54]

} 21. Be3 {

[%clk 00:59:57]

} {

[%emt 00:00:58]

} Ne5 {

[%clk 00:50:14]

} {

[%emt 00:01:49]

} 22. h5 {

[%clk 00:55:33]

} {

[%emt 00:04:53]

} a5 {

[%clk 00:41:24]

} {

[%emt 00:09:21]

} 23. a4 {

[%clk 00:53:01]

} {

[%emt 00:03:02]

} Rc8 {

[%clk 00:40:38]

} {

[%emt 00:01:17]

} 24. Nb5 {

[%clk 00:49:06]

} {

[%emt 00:04:25]

} f5 {

[%clk 00:37:45]

} {

[%emt 00:03:22]

} 25. Bd4 {

[%clk 00:48:47]

} {

[%emt 00:00:49]

} Nc6 {

[%clk 00:38:07]

} {

[%emt 00:00:09]

} 26. Bc4 {

[%clk 00:47:43]

} {

[%emt 00:01:34]

} Nxd4 {

[%clk 00:36:59]

} {

[%emt 00:01:38]

} 27. Nxd4 {

[%clk 00:45:11]

} {

[%emt 00:03:01]

} Ne7 {

[%clk 00:37:22]

} {

[%emt 00:00:07]

} 28. h6 {

[%clk 00:43:41]

} {

[%emt 00:02:00]

} Rc5 {

[%clk 00:37:16]

} {

[%emt 00:00:36]

} 29. Bb5 {

[%clk 00:36:51]

} {

[%emt 00:07:21]

} Kd8 {

[%clk 00:32:53]

} {

[%emt 00:04:52]

} 30. b4 {

[%clk 00:29:18]

} {

[%emt 00:08:03]

} Re5 {

[%clk 00:32:40]

} {

[%emt 00:00:42]

} 31. bxa5 {

[%clk 00:29:02]

} {

[%emt 00:00:46]

} bxa5 {

[%clk 00:33:01]

} {

[%emt 00:00:10]

} 32. Rh5 {

[%clk 00:29:05]

} {

[%emt 00:00:26]

} Bd5 {

[%clk 00:33:00]

} {

[%emt 00:00:30]

} 33. Rb1 {

[%clk 00:28:10]

} {

[%emt 00:01:26]

} Bf7 {

[%clk 00:32:32]

} {

[%emt 00:00:57]

} 34. Rh1 {

[%clk 00:27:59]

} {

[%emt 00:00:40]

} f4 {

[%clk 00:23:58]

} {

[%emt 00:09:05]

} 35. Be2 {

[%clk 00:24:21]

} {

[%emt 00:04:08]

} f3 {

[%clk 00:14:04]

} {

[%emt 00:10:24]

} 36. Rb8+ {

[%clk 00:24:03]

} {

[%emt 00:00:48]

} Nc8 {

[%clk 00:13:42]

} {

[%emt 00:00:52]

} 37. Ba6 {

[%clk 00:24:25]

} {

[%emt 00:00:07]

} Rc5 {

[%clk 00:14:04]

} {

[%emt 00:00:07]

} 38. gxf3 {

[%clk 00:23:43]

} {

[%emt 00:01:13]

} exf3 {

[%clk 00:13:56]

} {

[%emt 00:00:38]

} 39. Nb5 {

[%clk 00:21:43]

} {

[%emt 00:02:31]

} Bb3 {

[%clk 00:13:18]

} {

[%emt 00:01:08]

} 40. d4 {

[%clk 00:22:01]

} {

[%emt 00:00:13]

} Rc6 {

[%clk 00:13:46]

} {

[%emt 00:00:03]

} 41. Bb7 {

[%clk 00:17:42]

} {

[%emt 00:04:49]

} Re6+ {

[%clk 00:13:01]

} {

[%emt 00:01:14]

} 42. Kf1 {

[%clk 00:17:36]

} {

[%emt 00:00:36]

} Bc4+ {

[%clk 00:12:54]

} {

[%emt 00:00:37]

} 43. Kg1 {

[%clk 00:18:03]

} {

[%emt 00:00:03]

} Re1+ {

[%clk 00:12:38]

} {

[%emt 00:00:46]

} 44. Kh2 {

[%clk 00:18:29]

} {

[%emt 00:00:04]

} g3+ {

[%clk 00:12:52]

} {

[%emt 00:00:17]

} 45. Kxg3 {

[%clk 00:18:36]

} {

[%emt 00:00:22]

} 1-0

[Event "Kadrioru MK Open A"]
[Site "Tallinn, Paul Keres Chess House, Estonia"]
[Date "2023.02.12"]
[Round "5.3"]
[White "Pedoson, Georg Aleksander"]
[Black "Sinitsina, Anastassia"]
[Result "0-1"]
[TimeControl "90 minutes with 30 second increment from move 1"]
[BlackTitle "WFM"]
[WhiteElo "2253"]
[BlackElo "2174"]

1. d4 {

[%clk 01:30:58]

} {

[%emt 00:00:02]

} Nf6 {

[%clk 01:28:45]

} {

[%emt 00:02:16]

} 2. c4 {

[%clk 01:31:21]

} {

[%emt 00:00:06]

} g6 {

[%clk 01:29:11]

} {

[%emt 00:00:04]

} 3. Nc3 {

[%clk 01:31:47]

} {

[%emt 00:00:05]

} Bg7 {

[%clk 01:29:38]

} {

[%emt 00:00:03]

} 4. g3 {

[%clk 01:22:41]

} {

[%emt 00:09:36]

} d5 {

[%clk 01:29:12]

} {

[%emt 00:00:56]

} 5. cxd5 {

[%clk 01:19:29]

} {

[%emt 00:03:41]

} Nxd5 {

[%clk 01:29:21]

} {

[%emt 00:00:21]

} 6. Bg2 {

[%clk 01:19:48]

} {

[%emt 00:00:11]

} Nb6 {

[%clk 01:29:41]

} {

[%emt 00:00:11]

} 7. Nf3 {

[%clk 01:07:51]

} {

[%emt 00:12:27]

} Nc6 {

[%clk 01:28:01]

} {

[%emt 00:02:10]

} 8. e3 {

[%clk 01:07:09]

} {

[%emt 00:01:11]

} O-O {

[%clk 01:28:07]

} {

[%emt 00:00:25]

} 9. O-O {

[%clk 01:07:32]

} {

[%emt 00:00:07]

} Re8 {

[%clk 01:27:50]

} {

[%emt 00:00:47]

} 10. h3 {

[%clk 01:03:29]

} {

[%emt 00:04:33]

} e5 {

[%clk 01:25:46]

} {

[%emt 00:02:34]

} 11. d5 {

[%clk 01:02:54]

} {

[%emt 00:01:05]

} Na5 {

[%clk 01:25:34]

} {

[%emt 00:00:42]

} 12. e4 {

[%clk 01:03:14]

} {

[%emt 00:00:10]

} c6 {

[%clk 01:25:42]

} {

[%emt 00:00:22]

} 13. Bg5 {

[%clk 00:54:24]

} {

[%emt 00:09:20]

} f6 {

[%clk 01:23:28]

} {

[%emt 00:02:45]

} 14. Be3 {

[%clk 00:54:42]

} {

[%emt 00:00:12]

} cxd5 {

[%clk 01:22:25]

} {

[%emt 00:01:33]

} 15. Bxb6 {

[%clk 00:54:24]

} {

[%emt 00:00:47]

} axb6 {

[%clk 01:21:41]

} {

[%emt 00:01:14]

} 16. Nxd5 {

[%clk 00:50:01]

} {

[%emt 00:04:53]

} Be6 {

[%clk 01:21:17]

} {

[%emt 00:00:54]

} 17. h4 {

[%clk 00:46:22]

} {

[%emt 00:04:09]

} Bxd5 {

[%clk 01:13:00]

} {

[%emt 00:08:47]

} 18. Qxd5+ {

[%clk 00:35:38]

} {

[%emt 00:11:14]

} Qxd5 {

[%clk 01:12:32]

} {

[%emt 00:00:58]

} 19. exd5 {

[%clk 00:36:06]

} {

[%emt 00:00:01]

} Nc4 {

[%clk 01:10:03]

} {

[%emt 00:02:59]

} 20. b3 {

[%clk 00:34:16]

} {

[%emt 00:02:21]

} Nd6 {

[%clk 01:10:23]

} {

[%emt 00:00:10]

} 21. a4 {

[%clk 00:34:04]

} {

[%emt 00:00:42]

} Rac8 {

[%clk 01:08:09]

} {

[%emt 00:02:44]

} 22. Rac1 {

[%clk 00:33:53]

} {

[%emt 00:00:41]

} Bh6 {

[%clk 01:08:11]

} {

[%emt 00:00:27]

} 23. Rcd1 {

[%clk 00:24:42]

} {

[%emt 00:09:41]

} Rc3 {

[%clk 01:08:23]

} {

[%emt 00:00:18]

} 24. Nd2 {

[%clk 00:25:08]

} {

[%emt 00:00:04]

} Bxd2 {

[%clk 01:07:13]

} {

[%emt 00:01:40]

} 25. Rxd2 {

[%clk 00:25:30]

} {

[%emt 00:00:09]

} f5 {

[%clk 01:05:50]

} {

[%emt 00:01:53]

} 26. Re1 {

[%clk 00:25:13]

} {

[%emt 00:00:47]

} Kf7 {

[%clk 01:05:38]

} {

[%emt 00:00:42]

} 27. Re3 {

[%clk 00:25:20]

} {

[%emt 00:00:24]

} Rxe3 {

[%clk 01:05:31]

} {

[%emt 00:00:37]

} 28. fxe3 {

[%clk 00:25:46]

} {

[%emt 00:00:04]

} Rc8 {

[%clk 01:05:56]

} {

[%emt 00:00:05]

} 29. Kf2 {

[%clk 00:21:47]

} {

[%emt 00:04:29]

} Rc3 {

[%clk 01:06:05]

} {

[%emt 00:00:21]

} 30. Rb2 {

[%clk 00:22:11]

} {

[%emt 00:00:05]

} e4 {

[%clk 01:04:56]

} {

[%emt 00:01:39]

} 31. Bf1 {

[%clk 00:22:15]

} {

[%emt 00:00:26]

} Kf6 {

[%clk 01:05:09]

} {

[%emt 00:00:18]

} 32. Bc4 {

[%clk 00:22:07]

} {

[%emt 00:00:38]

} Ke5 {

[%clk 01:05:00]

} {

[%emt 00:00:39]

} 33. Rd2 {

[%clk 00:22:06]

} {

[%emt 00:00:31]

} h6 {

[%clk 01:04:32]

} {

[%emt 00:00:58]

} 34. Ke2 {

[%clk 00:20:44]

} {

[%emt 00:01:52]

} g5 {

[%clk 01:04:29]

} {

[%emt 00:00:34]

} 35. hxg5 {

[%clk 00:21:10]

} {

[%emt 00:00:04]

} hxg5 {

[%clk 01:04:56]

} {

[%emt 00:00:03]

} 36. Rb2 {

[%clk 00:13:10]

} {

[%emt 00:08:30]

} Rc1 {

[%clk 01:03:43]

} {

[%emt 00:01:43]

} 37. Kf2 {

[%clk 00:13:13]

} {

[%emt 00:00:27]

} f4 {

[%clk 01:00:03]

} {

[%emt 00:04:10]

} 38. gxf4+ {

[%clk 00:13:36]

} {

[%emt 00:00:07]

} gxf4 {

[%clk 01:00:30]

} {

[%emt 00:00:03]

} 39. exf4+ {

[%clk 00:14:01]

} {

[%emt 00:00:05]

} Kxf4 {

[%clk 01:00:57]

} {

[%emt 00:00:04]

} 40. Kg2 {

[%clk 00:09:33]

} {

[%emt 00:04:57]

} e3 {

[%clk 01:01:13]

} {

[%emt 00:00:13]

} 41. Be2 {

[%clk 00:09:53]

} {

[%emt 00:00:10]

} Nf5 {

[%clk 00:57:34]

} {

[%emt 00:04:09]

} 42. b4 {

[%clk 00:07:17]

} {

[%emt 00:03:07]

} Nd4 {

[%clk 00:56:41]

} {

[%emt 00:01:22]

} 43. Bh5 {

[%clk 00:05:20]

} {

[%emt 00:02:26]

} Ke5 {

[%clk 00:56:44]

} {

[%emt 00:00:28]

} 44. Bf3 {

[%clk 00:05:36]

} {

[%emt 00:00:14]

} Rc8 {

[%clk 00:55:05]

} {

[%emt 00:02:08]

} 45. Bh5 {

[%clk 00:04:07]

} {

[%emt 00:01:59]

} Rh8 {

[%clk 00:54:14]

} {

[%emt 00:01:21]

} 46. Be2 {

[%clk 00:02:06]

} {

[%emt 00:02:31]

} Kxd5 {

[%clk 00:53:58]

} {

[%emt 00:00:47]

} 47. Bd3 {

[%clk 00:02:22]

} {

[%emt 00:00:13]

} Rc8 {

[%clk 00:53:31]

} {

[%emt 00:00:57]

} 48. Rb1 {

[%clk 00:00:49]

} {

[%emt 00:02:02]

} Rc3 {

[%clk 00:53:25]

} {

[%emt 00:00:36]

} 49. Bg6 {

[%clk 00:01:09]

} {

[%emt 00:00:10]

} Ke5 {

[%clk 00:53:20]

} {

[%emt 00:00:35]

} 50. Rh1 {

[%clk 00:00:42]

} {

[%emt 00:00:55]

} e2 {

[%clk 00:51:55]

} {

[%emt 00:01:56]

} 51. Kf2 {

[%clk 00:00:43]

} {

[%emt 00:00:29]

} Rf3+ {

[%clk 00:52:11]

} {

[%emt 00:00:14]

} 52. Ke1 {

[%clk 00:01:09]

} {

[%emt 00:00:04]

} Ra3 {

[%clk 00:52:24]

} {

[%emt 00:00:17]

} 53. Kf2 {

[%clk 00:00:35]

} {

[%emt 00:01:04]

} Rxa4 {

[%emt 00:00:11]

} 54. Bd3 {

[%clk 00:00:40]

} {

[%emt 00:00:24]

} Rxb4 {

[%clk 00:52:52]

} {

[%emt 00:00:23]

} 55. Rh5+ {

[%clk 00:00:35]

} {

[%emt 00:00:34]

} Kd6 {

[%clk 00:52:25]

} {

[%emt 00:00:56]

} 56. Rh6+ {

[%clk 00:00:38]

} {

[%emt 00:00:29]

} Kc7 {

[%clk 00:52:46]

} {

[%emt 00:00:09]

} 57. Rh7+ {

[%clk 00:00:41]

} {

[%emt 00:00:27]

} Kb8 {

[%clk 00:53:11]

} {

[%emt 00:00:05]

} 58. Be4 {

[%clk 00:00:42]

} {

[%emt 00:00:28]

} Nc6 {

[%clk 00:53:11]

} {

[%emt 00:00:31]

} 59. Bf3 {

[%clk 00:01:07]

} {

[%emt 00:00:04]

} Rb2 {

[%clk 00:53:32]

} {

[%emt 00:00:09]

} 60. Be4 {

[%clk 00:00:40]

} {

[%emt 00:00:57]

} b5 {

[%clk 00:53:15]

} {

[%emt 00:00:47]

} 61. Ke1 {

[%clk 00:00:32]

} {

[%emt 00:00:38]

} b4 {

[%clk 00:53:15]

} {

[%emt 00:00:30]

} 62. Rh2 {

[%clk 00:00:31]

} {

[%emt 00:00:30]

} Nd4 {

[%clk 00:46:22]

} {

[%emt 00:07:23]

} 63. Rh7 {

[%clk 00:00:56]

} {

[%emt 00:00:06]

} b3 {

[%clk 00:46:39]

} {

[%emt 00:00:14]

} 64. Rd7 {

[%clk 00:00:55]

} {

[%emt 00:00:31]

} Nc6 {

[%clk 00:46:35]

} {

[%emt 00:00:33]

} 65. Rg7 {

[%clk 00:00:33]

} {

[%emt 00:00:52]

} Ra2 {

[%clk 00:46:40]

} {

[%emt 00:00:25]

} 66. Kf2 {

[%clk 00:00:36]

} {

[%emt 00:00:26]

} b2 {

[%clk 00:46:40]

} {

[%emt 00:00:30]

} 67. Rg1 {

[%emt 00:00:19]

} e1=Q+ {

[%clk 00:46:32]

} {

[%emt 00:00:31]

} 68. Kxe1 {

[%clk 00:01:19]

} {

[%emt 00:00:06]

} Ra1+ {

[%clk 00:46:42]

} {

[%emt 00:00:21]

} 69. Kf2 {

[%clk 00:01:46]

} {

[%emt 00:00:03]

} Rc1 {

[%clk 00:47:03]

} {

[%emt 00:00:09]

} 70. Re1 {

[%clk 00:01:45]

} {

[%emt 00:00:30]

} Nd4 {

[%clk 00:47:22]

} {

[%emt 00:00:11]

} 71. Bb1 {

[%clk 00:01:34]

} {

[%emt 00:00:41]

} Nc2 {

[%clk 00:47:15]

} {

[%emt 00:00:37]

} 0-1